bitfinex-derivatives/quotes_SOLF0:USTF0_20241105
["timestamp","ask_amount","ask_price","bid_price","bid_amount"]
[1730768407749,3.1549,158.59,158.55,15.62686641]
[1730768408059,12.87486641,158.6,158.55,9.69486641]
[1730768408454,12.87486641,158.6,158.5,12.47136641]
[1730768408455,9.69486641,158.57,158.5,12.47136641]
[1730768408750,9.69486641,158.57,158.49,1.2985]
[1730768408751,9.69486641,158.53,158.49,9.69486641]
[1730768408955,3.1564,158.52,158.49,9.69486641]
[1730768409154,12.87486641,158.53,158.49,9.69486641]
[1730768409351,3.1564,158.52,158.47,3.157]
[1730768409554,3.18,158.53,158.46,15.16453477]
[1730768411260,15.16453477,158.58,158.48,15.16453477]
[1730768411461,3.1554,158.56,158.48,15.16453477]
[1730768411658,6.3354,158.56,158.48,15.16453477]
[1730768412357,3.1552,158.57,158.5,15.16453477]
[1730768412559,3.18,158.57,158.53,3.1558]
[1730768413162,3.1551,158.58,158.51,2.7643]
[1730768413366,3.18,158.58,158.51,4.1212]
[1730768413560,3.18,158.58,158.53,15.16453477]
[1730768414360,1.4269,158.64,158.53,15.16453477]
[1730768414561,9.48475778,158.72,158.57,15.16453477]
[1730768414562,3.18,158.63,158.57,15.16453477]
[1730768414762,3.18,158.63,158.6,3.1545]
[1730768415067,3.18,158.63,158.57,15.16453477]
[1730768415463,3.1542,158.62,158.59,3.1548]
[1730768415670,3.18,158.63,158.59,3.1548]
[1730768415874,3.18,158.63,158.57,15.16453477]
[1730768416362,3.18,158.63,158.6,3.1545]
[1730768416963,3.18,158.63,158.58,3.1549]
[1730768416964,3.1542,158.62,158.58,3.1549]
[1730768417867,15.16453477,158.6,158.52,3.1561]
[1730768418071,3.18,158.59,158.48,15.16453477]
[1730768418466,15.16453477,158.58,158.5,3.1565]
[1730768418875,15.16453477,158.58,158.48,15.16453477]
[1730768419172,3.18,158.59,158.48,15.16453477]
[1730768419368,3.18,158.59,158.5,15.16453477]
[1730768420064,3.155,158.58,158.53,3.1558]
[1730768420671,3.18,158.59,158.54,3.1558]
[1730768420863,3.18,158.59,158.5,15.16453477]
[1730768421066,3.18,158.59,158.49,3.18]
[1730768421067,6.3348,158.59,158.52,15.16453477]
[1730768421370,6.3348,158.59,158.53,1.4026]
[1730768421579,3.18,158.59,158.53,1.4026]
[1730768422369,3.1544,158.61,158.55,15.16453477]
[1730768422671,3.1544,158.61,158.57,3.155]
[1730768422879,3.18,158.62,158.57,3.155]
[1730768423073,3.1543,158.62,158.55,15.16453477]
[1730768423277,3.1543,158.62,158.58,3.1548]
[1730768423771,3.18,158.63,158.59,3.1548]
[1730768423972,6.3341,158.63,158.56,1.2877]
[1730768424473,3.1541,158.63,158.56,1.2877]
[1730768424977,3.1542,158.62,158.58,3.1548]
[1730768425163,3.18,158.64,158.56,1.2877]
[1730768425368,3.1552,158.58,158.54,1.3437]
[1730768425574,15.16453477,158.62,158.54,3.1557]
[1730768425774,15.16453477,158.62,158.53,1.4026]
[1730768426278,15.16453477,158.62,158.54,3.1557]
[1730768426676,3.1551,158.58,158.54,3.1557]
[1730768427673,3.1552,158.57,158.54,3.1557]
[1730768427870,3.18,158.59,158.53,3.1559]
[1730768428176,3.1553,158.57,158.48,16.57133477]
[1730768428377,3.18,158.59,158.51,3.1562]
[1730768428568,15.16453477,158.58,158.48,19.75133477]
[1730768429266,3.1557,158.55,158.51,3.1563]
[1730768429577,4.5375,158.59,158.48,19.75133477]
[1730768429773,3.1556,158.56,158.52,3.156]
[1730768430081,3.1556,158.56,158.48,19.75133477]
[1730768430472,3.156,158.53,158.48,19.75133477]
[1730768431166,3.156,158.53,158.5,3.1564]
[1730768432665,3.1559,158.54,158.5,3.1564]
[1730768434879,3.1559,158.54,158.51,3.1564]
[1730768435175,3.18,158.55,158.51,3.1564]
[1730768435470,3.1558,158.54,158.51,3.1564]
[1730768436072,3.1558,158.54,158.48,1.4068]
[1730768436278,3.156,158.53,158.5,3.1565]
[1730768438685,3.1565,158.51,158.45,1.3919]
[1730768438873,18.34453477,158.55,158.45,1.3919]
[1730768439079,15.16453477,158.51,158.42,15.16453477]
[1730768439376,15.16453477,158.51,158.4,2.795]
[1730768439377,15.16453477,158.49,158.4,1.404]
[1730768439585,3.18,158.48,158.4,1.404]
[1730768439781,3.18,158.48,158.42,3.158]
[1730768439974,3.18,158.48,158.4,1.404]
[1730768440282,3.1573,158.47,158.43,3.1579]
[1730768441179,3.18,158.48,158.4,1.404]
[1730768442478,3.18,158.48,158.42,3.1581]
[1730768442678,3.18,158.48,158.4,1.404]
[1730768443073,3.1572,158.47,158.43,3.1579]
[1730768443773,1.4131,158.5,158.41,15.16453477]
[1730768443975,6.3369,158.49,158.45,3.1576]
[1730768444183,3.18,158.49,158.43,15.16453477]
[1730768444483,6.3368,158.49,158.45,3.1574]
[1730768445978,6.3368,158.49,158.43,15.16453477]
[1730768445979,3.1563,158.52,158.46,3.1574]
[1730768446283,3.18,158.51,158.44,2.6718]
[1730768447579,6.3363,158.52,158.44,2.6718]
[1730768447983,6.3363,158.52,158.49,3.1567]
[1730768447984,3.18,158.52,158.49,3.1567]
[1730768448988,3.18,158.52,158.5,3.1565]
[1730768449396,3.18,158.52,158.47,15.16453477]
[1730768449583,6.3357,158.55,158.51,3.1564]
[1730768449785,3.18,158.57,158.49,15.16453477]
[1730768449995,3.18,158.57,158.5,1.3932]
[1730768450184,3.1555,158.56,158.5,1.3932]
[1730768450885,3.1555,158.56,158.53,3.1559]
[1730768451085,3.18,158.57,158.5,1.3932]
[1730768451389,6.3351,158.58,158.54,3.1556]
[1730768451593,3.18,158.58,158.52,15.16453477]
[1730768452282,3.1549,158.59,158.55,3.1555]
[1730768452482,3.1549,158.59,158.52,15.16453477]
[1730768453086,3.1549,158.59,158.55,3.1554]
[1730768453282,3.18,158.6,158.51,1.3099]
[1730768453781,3.18,158.6,158.54,3.1556]
[1730768453782,3.1551,158.58,158.54,3.1556]
[1730768454590,3.1548,158.59,158.55,3.1554]
[1730768454790,3.18,158.6,158.55,3.1554]
[1730768455783,3.155,158.58,158.55,3.1554]
[1730768455981,3.18,158.6,158.54,15.16453477]
[1730768456190,3.18,158.62,158.54,15.16453477]
[1730768456387,3.1545,158.61,158.57,3.1551]
[1730768457793,3.18,158.62,158.54,15.16453477]
[1730768457991,3.1544,158.61,158.58,3.1549]
[1730768458190,3.1544,158.61,158.54,15.16453477]
[1730768459086,3.18,158.62,158.54,15.16453477]
[1730768459293,6.3342,158.62,158.55,1.3578]
[1730768459691,6.3342,158.62,158.58,3.1548]
[1730768460093,6.3342,158.62,158.55,1.3578]
[1730768460389,3.18,158.62,158.55,1.3578]
[1730768460691,16.51493477,158.65,158.56,16.56093477]
[1730768460894,3.18,158.65,158.62,3.1542]
[1730768461197,15.16453477,158.68,158.62,3.1542]
[1730768461198,3.18,158.67,158.62,3.1542]
[1730768461494,1.33,158.69,158.58,15.16453477]
[1730768461495,1.33,158.69,158.63,3.1539]
[1730768461694,3.18,158.67,158.63,3.1539]
[1730768462086,3.1534,158.66,158.62,3.1541]
[1730768462893,3.18,158.67,158.59,1.3732]
[1730768463089,3.1534,158.66,158.62,3.1541]
[1730768463293,3.1534,158.66,158.59,1.3732]
[1730768463497,3.1534,158.66,158.62,3.154]
[1730768463895,3.18,158.67,158.59,1.3732]
[1730768464097,3.1537,158.65,158.61,3.1543]
[1730768464697,3.1537,158.65,158.62,3.1542]
[1730768465386,3.18,158.67,158.62,3.1542]
[1730768465592,3.18,158.67,158.59,1.3732]
[1730768465788,3.18,158.67,158.56,16.56093477]
[1730768466098,3.1538,158.65,158.61,3.1543]
[1730768469393,3.18,158.67,158.56,19.74093477]
[1730768469595,3.1541,158.63,158.59,3.1546]
[1730768470601,15.16453477,158.66,158.6,3.1546]
[1730768470796,3.1536,158.65,158.56,16.56093477]
[1730768471198,3.18,158.67,158.56,16.56093477]
[1730768471400,3.18,158.67,158.6,3.1544]
[1730768471401,3.1538,158.64,158.6,3.1544]
[1730768474505,3.18,158.67,158.56,16.56093477]
[1730768474713,3.1537,158.65,158.61,3.1543]
[1730768475804,3.1538,158.64,158.6,3.1546]
[1730768476203,1.33,158.69,158.56,16.56093477]
[1730768476204,6.334,158.63,158.56,16.56093477]
[1730768476400,3.18,158.63,158.56,16.56093477]
[1730768476599,3.18,158.63,158.57,3.1551]
[1730768477004,3.18,158.63,158.55,1.3578]
[1730768477005,15.16453477,158.62,158.55,3.1554]
[1730768477210,16.48363477,158.62,158.52,18.34453477]
[1730768477409,16.48363477,158.62,158.5,15.16453477]
[1730768477611,15.16453477,158.6,158.5,15.16453477]
[1730768477814,3.18,158.59,158.49,2.6378]
[1730768478009,4.4766,158.59,158.49,2.6378]
[1730768479121,3.1555,158.56,158.52,3.1562]
[1730768479507,4.4766,158.59,158.49,2.6378]
[1730768479815,3.1556,158.56,158.51,3.1562]
[1730768480108,15.16453477,158.58,158.49,1.2901]
[1730768480713,5.767,158.59,158.45,2.7898]
[1730768480714,15.16453477,158.56,158.45,17.95433477]
[1730768480909,3.18,158.55,158.45,17.95433477]
[1730768481611,6.3358,158.55,158.5,3.1565]
[1730768481821,3.18,158.55,158.5,3.1565]
[1730768482814,3.18,158.55,158.47,15.16453477]
[1730768483009,3.18,158.55,158.51,3.1563]
[1730768483614,3.18,158.55,158.47,15.16453477]
[1730768483813,3.18,158.55,158.51,3.1562]
[1730768484309,3.18,158.55,158.47,15.16453477]
[1730768484514,3.1556,158.56,158.47,15.16453477]
[1730768484706,6.3356,158.56,158.47,15.16453477]
[1730768485107,6.3356,158.56,158.51,3.1562]
[1730768485313,3.1558,158.54,158.47,15.16453477]
[1730768485616,3.1558,158.54,158.5,3.1564]
[1730768486814,3.18,158.56,158.47,15.16453477]
[1730768487022,3.18,158.56,158.49,15.16453477]
[1730768487412,3.1556,158.55,158.49,3.1566]
[1730768487719,3.18,158.56,158.47,15.16453477]
[1730768488219,3.1556,158.55,158.52,3.1562]
[1730768489121,3.1556,158.55,158.47,15.16453477]
[1730768489619,3.1558,158.54,158.47,15.16453477]
[1730768489820,3.1558,158.54,158.51,3.1563]
[1730768490018,3.156,158.53,158.47,15.16453477]
[1730768490211,3.18,158.55,158.43,16.54193477]
[1730768490212,15.16453477,158.54,158.43,16.54193477]
[1730768490412,16.51183477,158.54,158.45,3.1574]
[1730768490619,3.1574,158.46,158.39,15.16453477]
[1730768490813,3.18,158.47,158.39,15.16453477]
[1730768491009,3.18,158.47,158.43,3.1579]
[1730768491326,3.1575,158.46,158.39,15.16453477]
[1730768491619,3.18,158.47,158.39,15.16453477]
[1730768492423,6.3373,158.47,158.43,3.1578]
[1730768493520,3.18,158.47,158.39,15.16453477]
[1730768493719,3.18,158.47,158.44,3.1577]
[1730768494018,3.18,158.48,158.41,15.16453477]
[1730768494323,3.18,158.49,158.46,3.1572]
[1730768494617,3.18,158.49,158.43,15.16453477]
[1730768494823,6.3363,158.52,158.48,3.157]
[1730768495210,16.51183477,158.54,158.45,1.321]
[1730768495415,3.18,158.52,158.45,1.321]
[1730768496023,6.3362,158.52,158.48,3.1568]
[1730768496728,3.18,158.52,158.49,3.1566]
[1730768497225,3.18,158.52,158.5,3.1565]
[1730768497923,6.336,158.53,158.49,3.1567]
[1730768498917,3.156,158.53,158.49,3.1567]
[1730768499120,6.336,158.53,158.49,3.1567]
[1730768500319,3.1566,158.51,158.47,3.1571]
[1730768500712,15.16453477,158.52,158.45,1.321]
[1730768500919,3.1562,158.52,158.48,3.1568]
[1730768503127,3.1564,158.51,158.48,3.1568]
[1730768504525,3.18,158.53,158.48,3.1568]
[1730768504526,3.1563,158.52,158.48,3.1568]
[1730768504920,3.18,158.53,158.48,3.1568]
[1730768505125,3.1564,158.51,158.48,3.1568]
[1730768506023,6.3361,158.53,158.5,3.1565]
[1730768506529,3.18,158.53,158.45,1.321]
[1730768506728,3.18,158.53,158.47,3.1571]
[1730768506729,3.1565,158.51,158.47,3.1571]
[1730768507031,3.18,158.53,158.45,1.321]
[1730768507225,3.1563,158.52,158.45,16.48553477]
[1730768507924,3.18,158.53,158.45,16.48553477]
[1730768508627,3.1563,158.52,158.48,3.1569]
[1730768509729,3.1564,158.51,158.48,3.1569]
[1730768515635,3.157,158.48,158.45,3.1575]
[1730768515837,3.157,158.48,158.41,15.16453477]
[1730768516224,3.157,158.48,158.45,3.1575]
[1730768516635,3.18,158.49,158.41,15.16453477]
[1730768516834,3.18,158.49,158.41,3.1583]
[1730768517131,3.18,158.49,158.4,4.04]
[1730768517841,3.1577,158.45,158.41,3.1583]
[1730768518033,6.3377,158.45,158.4,2.7009]
[1730768519240,3.1578,158.44,158.41,3.1583]
[1730768519538,3.18,158.45,158.4,2.7009]
[1730768520431,6.3376,158.45,158.41,3.1582]
[1730768521239,3.18,158.45,158.43,3.1578]
[1730768521533,3.18,158.45,158.4,2.7009]
[1730768521738,3.18,158.47,158.44,3.1576]
[1730768522036,3.18,158.47,158.41,16.58353477]
[1730768522227,6.3366,158.5,158.47,3.1571]
[1730768524547,3.18,158.5,158.47,3.1571]
[1730768525532,3.18,158.5,158.49,3.1568]
[1730768525736,3.18,158.5,158.43,15.16453477]
[1730768525737,15.16453477,158.54,158.43,15.16453477]
[1730768525938,3.18,158.51,158.41,16.58353477]
[1730768526146,3.1571,158.48,158.44,3.1576]
[1730768526444,3.1571,158.48,158.41,16.58353477]
[1730768527139,3.1571,158.48,158.43,3.158]
[1730768527443,3.1571,158.48,158.41,16.58353477]
[1730768527843,3.1571,158.48,158.45,3.1574]
[1730768528545,3.18,158.51,158.45,3.1574]
[1730768528744,3.1568,158.49,158.45,3.1574]
[1730768528940,3.18,158.51,158.48,3.1568]
[1730768530341,60.60453477,158.56,158.49,3.1566]
[1730768530537,3.18,158.55,158.49,3.1566]
[1730768530738,3.18,158.55,158.46,2.7785]
[1730768531142,15.16453477,158.58,158.49,15.16453477]
[1730768531438,3.18,158.57,158.47,16.46513477]
[1730768531645,3.1559,158.54,158.5,3.1564]
[1730768533942,3.18,158.57,158.47,16.46513477]
[1730768534945,3.1557,158.55,158.51,3.1563]
[1730768535447,3.18,158.56,158.47,1.3006]
[1730768535448,18.34453477,158.56,158.47,1.3006]
[1730768535746,3.1561,158.53,158.49,3.1567]
[1730768535945,3.1561,158.53,158.47,1.3006]
[1730768538051,18.34453477,158.56,158.47,1.3006]
[1730768538449,18.34453477,158.56,158.5,3.1564]
[1730768538649,3.1559,158.54,158.47,1.3006]
[1730768539154,3.1561,158.53,158.47,1.3006]
[1730768539355,12.86088771,158.53,158.48,9.70478771]
[1730768540249,12.86088771,158.53,158.5,3.1565]
[1730768541254,9.70478771,158.53,158.48,9.70478771]
[1730768541457,3.1564,158.51,158.46,12.48328771]
[1730768542254,3.1564,158.51,158.48,3.1569]
[1730768542457,12.86118771,158.51,158.48,3.1569]
[1730768542754,3.18,158.52,158.46,11.05898771]
[1730768543547,6.3362,158.52,158.49,3.1567]
[1730768544447,6.3362,158.52,158.46,11.05898771]
[1730768544448,16.04098771,158.52,158.46,11.05898771]
[1730768544651,16.04098771,158.52,158.48,3.1569]
[1730768545049,12.88478771,158.52,158.46,11.05898771]
[1730768545250,9.70478771,158.49,158.44,9.70478771]
[1730768545554,9.70478771,158.47,158.41,9.70478771]
[1730768545852,12.88478771,158.47,158.41,9.70478771]
[1730768547052,9.70478771,158.46,158.39,9.70478771]
[1730768547250,9.70478771,158.42,158.36,9.70478771]
[1730768547449,2.7679,158.51,158.34,11.12118771]
[1730768547450,9.70478771,158.41,158.34,11.12118771]
[1730768547646,9.70478771,158.39,158.36,3.1593]
[1730768547846,3.1587,158.4,158.36,3.1593]
[1730768548849,3.1592,158.37,158.33,3.1599]
[1730768549045,15.17165475,158.39,158.33,3.1599]
[1730768549253,3.18,158.41,158.33,15.17165475]
[1730768550651,3.18,158.41,158.37,3.159]
[1730768550857,3.18,158.41,158.33,15.17165475]
[1730768551252,3.18,158.41,158.37,3.159]
[1730768551954,3.18,158.42,158.35,15.17165475]
[1730768552449,3.18,158.42,158.38,3.1589]
[1730768552645,3.18,158.42,158.35,15.17165475]
[1730768553254,3.18,158.42,158.36,4.1267]
[1730768554259,3.18,158.42,158.4,3.1584]
[1730768554659,4.5541,158.46,158.36,4.1267]
[1730768554855,3.18,158.45,158.42,3.158]
[1730768556956,15.17165475,158.47,158.43,3.1578]
[1730768557256,3.18,158.46,158.43,3.1578]
[1730768557462,3.18,158.46,158.39,15.17165475]
[1730768557666,18.32825475,158.5,158.41,15.17165475]
[1730768557959,3.18,158.49,158.41,15.17165475]
[1730768558363,6.3368,158.49,158.45,3.1574]
[1730768559157,3.1571,158.48,158.43,3.1578]
[1730768559354,3.18,158.49,158.43,3.1578]
[1730768559559,3.18,158.49,158.4,3.18]
[1730768559759,3.157,158.48,158.4,3.18]
[1730768560162,2.7439,158.51,158.4,3.18]
[1730768560163,2.7439,158.51,158.41,15.17165475]
[1730768560355,3.18,158.49,158.46,3.1572]
[1730768560965,3.18,158.49,158.45,3.1575]
[1730768562167,6.3368,158.49,158.45,3.1575]
[1730768562658,6.3368,158.49,158.42,4.0496]
[1730768562659,3.157,158.48,158.44,3.1577]
[1730768562967,3.18,158.49,158.42,2.697]
[1730768564269,3.1574,158.47,158.43,3.158]
[1730768565269,3.1576,158.45,158.41,3.1583]
[1730768565659,6.3376,158.45,158.41,3.1583]
[1730768566262,3.18,158.45,158.41,3.1582]
[1730768566467,3.18,158.45,158.38,15.17165475]
[1730768566865,3.18,158.45,158.42,3.1581]
[1730768567870,3.18,158.45,158.43,3.1578]
[1730768568076,3.18,158.45,158.4,15.17165475]
[1730768568771,3.18,158.48,158.4,15.17165475]
[1730768570376,6.337,158.48,158.45,3.1575]
[1730768570576,3.18,158.48,158.4,15.17165475]
[1730768570773,3.1572,158.47,158.44,3.1576]
[1730768571281,3.18,158.48,158.4,15.17165475]
[1730768571481,6.337,158.48,158.45,3.1576]
[1730768572282,3.18,158.48,158.45,3.1576]
[1730768572581,3.18,158.51,158.45,15.17165475]
[1730768573180,3.18,158.51,158.48,3.1568]
[1730768574475,12.87428047,158.52,158.48,3.1568]
[1730768575186,16.03048047,158.52,158.49,3.1567]
[1730768575381,6.3362,158.52,158.49,3.1567]
[1730768575581,3.18,158.52,158.45,15.14661438]
[1730768575779,3.18,158.52,158.5,3.1565]
[1730768575982,3.1559,158.54,158.45,15.14661438]
[1730768576185,6.3359,158.54,158.45,15.14661438]
[1730768576385,6.3359,158.54,158.45,18.32661438]
[1730768576981,1.417,158.55,158.47,15.14661438]
[1730768577179,15.14661438,158.61,158.51,15.14661438]
[1730768577383,3.18,158.6,158.51,15.14661438]
[1730768577584,3.18,158.6,158.54,3.1557]
[1730768577585,3.1552,158.58,158.54,3.1557]
[1730768578588,6.3346,158.6,158.56,3.1553]
[1730768578988,6.3346,158.6,158.52,15.14661438]
[1730768578989,3.18,158.6,158.52,15.14661438]
[1730768579290,3.18,158.62,158.54,15.14661438]
[1730768579494,3.18,158.62,158.55,1.3807]
[1730768579793,1.3387,158.63,158.59,3.1547]
[1730768580790,3.1541,158.63,158.59,3.1547]
[1730768580989,3.1541,158.63,158.55,1.3807]
[1730768580990,3.1541,158.63,158.58,3.1549]
[1730768581290,3.18,158.64,158.55,1.3807]
[1730768582085,3.1541,158.63,158.57,3.155]
[1730768582289,3.1541,158.63,158.55,1.3807]
[1730768583191,3.18,158.64,158.56,15.14661438]
[1730768583496,1.2888,158.66,158.58,15.14661438]
[1730768583688,15.14661438,158.7,158.6,15.14661438]
[1730768583900,3.18,158.69,158.6,15.14661438]
[1730768584090,3.18,158.7,158.6,15.14661438]
[1730768584393,3.1529,158.69,158.64,3.1537]
[1730768584591,3.18,158.72,158.64,15.14661438]
[1730768584788,2.6435,158.77,158.67,15.14661438]
[1730768584998,15.14661438,158.8,158.71,15.14661438]
[1730768585200,3.18,158.81,158.74,15.14661438]
[1730768585396,3.18,158.81,158.77,3.151]
[1730768585600,2.6435,158.83,158.74,18.32661438]
[1730768586102,17.79011438,158.83,158.72,18.30661438]
[1730768586486,17.79011438,158.83,158.72,15.14661438]
[1730768586690,18.29721438,158.8,158.74,3.1516]
[1730768586902,18.30661438,158.8,158.74,3.1516]
[1730768587297,18.30661438,158.8,158.7,3.16]
[1730768588694,18.30661438,158.8,158.69,15.14661438]
[1730768588892,18.30661438,158.8,158.69,18.30661438]
[1730768589098,3.1511,158.78,158.73,3.152]
[1730768589399,3.16,158.8,158.72,15.14661438]
[1730768589588,20.95011438,158.83,158.73,3.16]
[1730768589790,20.95011438,158.83,158.73,4.4546]
[1730768590096,3.1504,158.82,158.76,3.1513]
[1730768590290,20.95011438,158.83,158.74,15.14661438]
[1730768590487,5.8035,158.83,158.74,15.14661438]
[1730768591290,8.9536,158.83,158.78,3.1508]
[1730768591701,3.16,158.84,158.76,15.14661438]
[1730768592204,16.56681438,158.87,158.76,15.14661438]
[1730768592404,16.56681438,158.87,158.73,5.781]
[1730768592405,3.16,158.87,158.8,15.14661438]
[1730768592704,6.3094,158.87,158.81,3.1504]
[1730768593202,3.16,158.87,158.82,3.1502]
[1730768593407,3.16,158.87,158.8,15.14661438]
[1730768593800,6.3094,158.87,158.81,3.1503]
[1730768594603,3.16,158.87,158.78,3.16]
[1730768595105,3.1494,158.86,158.81,3.1504]
[1730768595312,3.16,158.87,158.78,3.16]
[1730768596107,15.14661438,158.86,158.8,3.1505]
[1730768596400,15.14661438,158.86,158.77,1.3132]
[1730768596805,15.14661438,158.86,158.79,3.1508]
[1730768596806,3.15,158.84,158.79,3.1508]
[1730768598295,3.16,158.87,158.78,15.14661438]
[1730768598493,3.1498,158.84,158.79,3.1507]
[1730768599099,3.16,158.87,158.79,3.1507]
[1730768599300,15.14661438,158.86,158.76,18.29801438]
[1730768599606,3.16,158.87,158.78,15.14661438]
[1730768599796,3.1498,158.84,158.79,3.1508]
[1730768601810,3.1504,158.82,158.77,3.1511]
[1730768602307,15.14661438,158.86,158.78,3.1509]
[1730768602605,15.14661438,158.86,158.76,15.14661438]
[1730768603197,3.1502,158.83,158.78,3.1509]
[1730768603606,3.1502,158.83,158.76,15.14661438]
[1730768603811,3.1502,158.83,158.79,3.1508]
[1730768604104,3.16,158.87,158.78,15.14661438]
[1730768605011,3.1501,158.83,158.78,15.14661438]
[1730768605503,3.1497,158.85,158.8,3.1505]
[1730768605706,16.43551438,158.9,158.8,15.14661438]
[1730768605911,3.1494,158.87,158.83,3.1499]
[1730768606107,3.16,158.88,158.8,15.14661438]
[1730768606508,18.30661438,158.88,158.79,3.1507]
[1730768607106,3.1501,158.83,158.79,3.1507]
[1730768607307,15.14661438,158.86,158.78,3.151]
[1730768607708,15.14661438,158.86,158.76,15.14661438]
[1730768607911,3.1502,158.83,158.79,3.1508]
[1730768609016,3.16,158.84,158.76,15.14661438]
[1730768609320,3.1504,158.81,158.76,15.14661438]
[1730768609521,3.16,158.84,158.76,15.14661438]
[1730768609817,3.1504,158.81,158.77,3.1511]
[1730768614016,3.16,158.84,158.76,15.14661438]
[1730768614216,3.16,158.84,158.76,18.29801438]
[1730768614217,3.1509,158.79,158.76,18.29801438]
[1730768614413,1.3558,158.83,158.76,15.14661438]
[1730768614615,3.151,158.78,158.75,3.1515]
[1730768615123,3.16,158.8,158.75,3.1515]
[1730768615313,3.1508,158.79,158.75,3.1515]
[1730768616525,3.151,158.78,158.75,3.1515]
[1730768617722,3.1509,158.79,158.75,3.1515]
[1730768621327,3.1509,158.79,158.73,16.44121438]
[1730768621630,15.14661438,158.89,158.77,15.14661438]
[1730768621929,4.5372,158.88,158.77,15.14661438]
[1730768622123,3.15,158.83,158.77,15.14661438]
[1730768622924,3.1498,158.85,158.81,3.1502]
[1730768623319,4.5372,158.88,158.79,15.14661438]
[1730768623519,3.1498,158.85,158.81,3.1504]
[1730768623717,4.5372,158.88,158.79,15.14661438]
[1730768623918,3.1501,158.83,158.79,3.1507]
[1730768624529,3.1502,158.82,158.77,18.29761438]
[1730768624729,3.1502,158.82,158.77,15.14661438]
[1730768625217,3.1502,158.82,158.78,3.1509]
[1730768625627,3.1504,158.82,158.75,18.30661438]
[1730768625819,3.16,158.84,158.77,3.1511]
[1730768626333,3.1507,158.8,158.77,3.1511]
[1730768627630,3.1505,158.81,158.77,3.1511]
[1730768628922,3.16,158.84,158.77,3.1511]
[1730768629121,3.1506,158.8,158.76,3.1513]
[1730768629627,3.1506,158.8,158.75,18.30661438]
[1730768630125,18.30661438,158.84,158.74,1.3669]
[1730768630727,18.30661438,158.84,158.75,3.1515]
[1730768630728,3.1509,158.79,158.75,3.1515]
[1730768631223,3.1509,158.79,158.76,3.1514]
[1730768631430,3.1509,158.79,158.77,9.68323379]
[1730768631628,3.1509,158.79,158.78,9.68323379]
[1730768632525,3.1508,158.8,158.78,9.68323379]
[1730768634536,3.1502,158.83,158.78,9.68323379]
[1730768634735,12.84323379,158.84,158.78,9.68323379]
[1730768635435,3.1508,158.79,158.78,9.68323379]
[1730768635836,3.1508,158.79,158.76,9.68323379]
[1730768636534,3.1508,158.79,158.76,12.83453379]
[1730768637232,3.1508,158.8,158.78,9.68323379]
[1730768639340,3.1508,158.79,158.76,9.68323379]
[1730768639531,9.68323379,158.82,158.76,9.68323379]
[1730768640538,3.151,158.79,158.76,9.68323379]
[1730768640742,3.151,158.79,158.77,9.68323379]
[1730768642240,3.1516,158.75,158.72,1.2932]
[1730768642435,9.68323379,158.78,158.72,1.2932]
[1730768642436,12.84323379,158.78,158.72,1.2932]
[1730768643232,12.84323379,158.78,158.7,9.68323379]
[1730768643233,9.68323379,158.75,158.7,9.68323379]
[1730768643936,3.1523,158.72,158.7,9.68323379]
[1730768644538,3.1526,158.71,158.68,9.68323379]
[1730768644737,9.68323379,158.73,158.68,9.68323379]
[1730768645338,3.16,158.74,158.66,3.1533]
[1730768645535,3.16,158.74,158.65,15.14717756]
[1730768645739,3.1525,158.71,158.67,3.1532]
[1730768648343,3.1528,158.69,158.65,18.30067756]